[Event "Betsys MČR v online bleskovém šachu 2021"]
[Site "Chess.com"]
[Date "2021.04.17"]
[Round "12"]
[White "Soural_J"]
[Black "koky_3"]
[Result "1-0"]
[WhiteElo "2200"]
[BlackElo "2043"]
[TimeControl "180+1"]
[EndTime "11:00:36 PDT"]
[Termination "Uživatel Soural_J zvítězil po vzdání soupeře"]

1. Nf3 {[%clk 0:03:00.9]} 1... d5 {[%clk 0:02:52.4]} 2. c4 {[%clk 0:03:00.6]}
2... e6 {[%clk 0:02:50]} 3. g3 {[%clk 0:03:00.2]} 3... c6 {[%clk 0:02:49.8]} 4.
Bg2 {[%clk 0:03:00.5]} 4... f5 {[%clk 0:02:49.9]} 5. O-O {[%clk 0:03:00.7]} 5...
Nf6 {[%clk 0:02:49.8]} 6. b3 {[%clk 0:02:59.9]} 6... Be7 {[%clk 0:02:49.6]} 7.
Bb2 {[%clk 0:02:59.9]} 7... O-O {[%clk 0:02:49]} 8. d3 {[%clk 0:02:59.1]} 8...
Bd7 {[%clk 0:02:49]} 9. Nbd2 {[%clk 0:02:58.9]} 9... Be8 {[%clk 0:02:48.9]} 10.
Ne5 {[%clk 0:02:59]} 10... Nbd7 {[%clk 0:02:44.8]} 11. Ndf3 {[%clk 0:02:59]}
11... Bh5 {[%clk 0:02:40.1]} 12. Qc2 {[%clk 0:02:55.5]} 12... Bxf3 {[%clk
0:02:38.5]} 13. exf3 {[%clk 0:02:49.6]} 13... Nxe5 {[%clk 0:02:34]} 14. Bxe5
{[%clk 0:02:48.5]} 14... Bd6 {[%clk 0:02:23.5]} 15. f4 {[%clk 0:02:46.7]} 15...
Bxe5 {[%clk 0:02:10.4]} 16. fxe5 {[%clk 0:02:45]} 16... Ng4 {[%clk 0:02:07.3]}
17. Qe2 {[%clk 0:02:40.7]} 17... Qc7 {[%clk 0:01:52.8]} 18. Rfe1 {[%clk
0:02:35.1]} 18... Rad8 {[%clk 0:01:48.8]} 19. h3 {[%clk 0:02:32.4]} 19... Nh6
{[%clk 0:01:46.7]} 20. f4 {[%clk 0:02:32.4]} 20... Qb6+ {[%clk 0:01:32.8]} 21.
Qf2 {[%clk 0:02:29.3]} 21... Qxf2+ {[%clk 0:01:31.8]} 22. Kxf2 {[%clk
0:02:29.9]} 22... d4 {[%clk 0:01:28.3]} 23. c5 {[%clk 0:02:22.1]} 23... Kf7
{[%clk 0:01:21.3]} 24. Rec1 {[%clk 0:02:19.2]} 24... Ke7 {[%clk 0:01:19.9]} 25.
Rc4 {[%clk 0:02:18.9]} 25... Rd7 {[%clk 0:01:17.4]} 26. Ra4 {[%clk 0:02:12.3]}
26... a6 {[%clk 0:01:13.1]} 27. Rc4 {[%clk 0:02:10.8]} 27... Nf7 {[%clk
0:01:05.6]} 28. b4 {[%clk 0:02:09.8]} 28... Nh8 {[%clk 0:01:04.3]} 29. a4 {[%clk
0:02:07.2]} 29... Rc8 {[%clk 0:00:58.5]} 30. Rb1 {[%clk 0:02:02.8]} 30... Ng6
{[%clk 0:00:54.6]} 31. b5 {[%clk 0:01:58.9]} 31... axb5 {[%clk 0:00:51.3]} 32.
axb5 {[%clk 0:01:58.6]} 32... h5 {[%clk 0:00:37.9]} 33. h4 {[%clk 0:01:51]}
33... Nh8 {[%clk 0:00:32.1]} 34. Rbb4 {[%clk 0:01:39.5]} 34... cxb5 {[%clk
0:00:29]} 35. Rxb5 {[%clk 0:01:39]} 35... Rcc7 {[%clk 0:00:24.4]} 36. Rb6 {[%clk
0:01:38.8]} 36... Nf7 {[%clk 0:00:20.4]} 37. Ke2 {[%clk 0:01:36.4]} 37... Nd8
{[%clk 0:00:19.8]} 38. Kd2 {[%clk 0:01:35.1]} 38... Nc6 {[%clk 0:00:19.2]} 39.
Bxc6 {[%clk 0:01:31.3]} 39... Rxc6 {[%clk 0:00:18.4]} 40. Rxc6 {[%clk
0:01:29.8]} 40... bxc6 {[%clk 0:00:18]} 41. Ra4 {[%clk 0:01:29]} 41... Rb7
{[%clk 0:00:17]} 42. Kc2 {[%clk 0:01:25.2]} 42... Kd7 {[%clk 0:00:16]} 43. Rxd4+
{[%clk 0:01:24.1]} 43... Ke7 {[%clk 0:00:14.6]} 44. Ra4 {[%clk 0:01:21.1]} 44...
Kd7 {[%clk 0:00:12.6]} 45. Ra8 {[%clk 0:01:17.4]} 45... Rb5 {[%clk 0:00:11.8]}
46. d4 {[%clk 0:01:16.7]} 46... Rb4 {[%clk 0:00:11.4]} 47. Kc3 {[%clk
0:01:16.2]} 47... Rb1 {[%clk 0:00:11.2]} 48. Rg8 {[%clk 0:01:16]} 48... Rc1+
{[%clk 0:00:09.9]} 49. Kd2 {[%clk 0:01:12.8]} 49... Ra1 {[%clk 0:00:08.8]} 50.
Rxg7+ {[%clk 0:01:11.6]} 1-0

[Event "Betsys MČR v online bleskovém šachu 2021"]
[Site "Chess.com"]
[Date "2021.04.17"]
[Round "12"]
[White "YawningBagel"]
[Black "MBorkovec"]
[Result "0-1"]
[WhiteElo "1997"]
[BlackElo "2295"]
[TimeControl "180+1"]
[EndTime "11:00:37 PDT"]
[Termination "Uživatel MBorkovec zvítězil na čas"]

1. d4 {[%clk 0:03:00.9]} 1... Nf6 {[%clk 0:02:59.1]} 2. c4 {[%clk 0:03:00.7]}
2... g6 {[%clk 0:02:59.1]} 3. Nc3 {[%clk 0:03:01.3]} 3... Bg7 {[%clk 0:02:59.7]}
4. e4 {[%clk 0:03:01.4]} 4... O-O {[%clk 0:02:59.9]} 5. Nf3 {[%clk 0:03:02.1]}
5... d6 {[%clk 0:03:00.4]} 6. Bg5 {[%clk 0:03:02.1]} 6... Na6 {[%clk 0:02:57.1]}
7. Be2 {[%clk 0:03:01.8]} 7... e5 {[%clk 0:02:54.3]} 8. d5 {[%clk 0:03:01.6]}
8... c6 {[%clk 0:02:53.8]} 9. O-O {[%clk 0:03:01.2]} 9... cxd5 {[%clk
0:02:54.1]} 10. Nxd5 {[%clk 0:02:54.5]} 10... Be6 {[%clk 0:02:50.6]} 11. Nxf6+
{[%clk 0:02:10]} 11... Bxf6 {[%clk 0:02:48.8]} 12. Bxf6 {[%clk 0:02:10.5]} 12...
Qxf6 {[%clk 0:02:48.7]} 13. Qd2 {[%clk 0:02:10.7]} 13... Rfd8 {[%clk 0:02:39.5]}
14. b3 {[%clk 0:02:08.9]} 14... Nc5 {[%clk 0:02:39.3]} 15. Bd3 {[%clk
0:02:04.4]} 15... Bg4 {[%clk 0:02:39.1]} 16. Ne1 {[%clk 0:01:39.1]} 16... Bd7
{[%clk 0:02:39]} 17. Nc2 {[%clk 0:01:33.1]} 17... Bc6 {[%clk 0:02:39.1]} 18. f3
{[%clk 0:01:31.7]} 18... Ne6 {[%clk 0:02:32.2]} 19. Ne3 {[%clk 0:01:23.4]} 19...
Nf4 {[%clk 0:02:28.8]} 20. g3 {[%clk 0:01:14.5]} 20... Ne6 {[%clk 0:02:24.4]}
21. Rac1 {[%clk 0:01:10.1]} 21... Nd4 {[%clk 0:02:23.5]} 22. Be2 {[%clk
0:01:01.7]} 22... a5 {[%clk 0:02:17.3]} 23. Nd5 {[%clk 0:00:34.5]} 23... Bxd5
{[%clk 0:02:14.8]} 24. exd5 {[%clk 0:00:35.4]} 24... Qe7 {[%clk 0:02:05.3]} 25.
Bd3 {[%clk 0:00:30.3]} 25... f5 {[%clk 0:02:03.4]} 26. f4 {[%clk 0:00:28.6]}
26... e4 {[%clk 0:01:57.6]} 27. Be2 {[%clk 0:00:21.4]} 27... Nxe2+ {[%clk
0:01:38.5]} 28. Qxe2 {[%clk 0:00:22.3]} 28... Qf6 {[%clk 0:01:38.8]} 29. Qe3
{[%clk 0:00:21.6]} 29... Qb2 {[%clk 0:01:31.4]} 30. Rf2 {[%clk 0:00:21.8]} 30...
Qf6 {[%clk 0:01:28.5]} 31. Qc3 {[%clk 0:00:20.3]} 31... Qxc3 {[%clk 0:01:24.4]}
32. Rxc3 {[%clk 0:00:21.2]} 32... b6 {[%clk 0:01:25]} 33. Re2 {[%clk 0:00:21.5]}
33... Kf7 {[%clk 0:01:25]} 34. Kf2 {[%clk 0:00:22]} 34... Kf6 {[%clk 0:01:25.2]}
35. Ke3 {[%clk 0:00:22.9]} 35... h6 {[%clk 0:01:24.2]} 36. a3 {[%clk 0:00:22.5]}
36... g5 {[%clk 0:01:24.1]} 37. Rcc2 {[%clk 0:00:22]} 37... Rg8 {[%clk
0:01:23.6]} 38. Rg2 {[%clk 0:00:21.5]} 38... Rg7 {[%clk 0:01:22.3]} 39. h4
{[%clk 0:00:20.4]} 39... Rag8 {[%clk 0:01:20.1]} 40. hxg5+ {[%clk 0:00:13.9]}
40... hxg5 {[%clk 0:01:20]} 41. fxg5+ {[%clk 0:00:11.9]} 41... Ke5 {[%clk
0:01:20.2]} 42. g4 {[%clk 0:00:06.4]} 42... Rxg5 {[%clk 0:01:19.1]} 43. Rcf2
{[%clk 0:00:04.8]} 43... Rxg4 {[%clk 0:01:17.2]} 44. Rxg4 {[%clk 0:00:05.3]}
44... Rxg4 {[%clk 0:01:17.2]} 45. Rh2 {[%clk 0:00:02.9]} 45... f4+ {[%clk
0:01:16.5]} 46. Kd2 {[%clk 0:00:02.7]} 46... Kd4 {[%clk 0:01:16.3]} 47. Rh6
{[%clk 0:00:02.1]} 47... Rg2+ {[%clk 0:01:16.4]} 48. Kd1 {[%clk 0:00:01.4]}
48... Kd3 {[%clk 0:01:16.6]} 49. Kc1 {[%clk 0:00:01.3]} 49... e3 {[%clk
0:01:15.7]} 0-1

[Event "Betsys MČR v online bleskovém šachu 2021"]
[Site "Chess.com"]
[Date "2021.04.17"]
[Round "12"]
[White "Zavurka1975"]
[Black "Drak1961"]
[Result "1/2-1/2"]
[WhiteElo "2194"]
[BlackElo "2081"]
[TimeControl "180+1"]
[EndTime "11:00:37 PDT"]
[Termination "Remíza opakováním pozice"]

1. d4 {[%clk 0:03:00.9]} 1... Nf6 {[%clk 0:02:58.7]} 2. Nf3 {[%clk 0:03:00.6]}
2... g6 {[%clk 0:02:57.8]} 3. Bf4 {[%clk 0:02:59.5]} 3... Bg7 {[%clk 0:02:56.9]}
4. e3 {[%clk 0:02:59.4]} 4... d6 {[%clk 0:02:56.5]} 5. h3 {[%clk 0:02:59.3]}
5... O-O {[%clk 0:02:55.4]} 6. Be2 {[%clk 0:02:59.7]} 6... Nbd7 {[%clk
0:02:52.1]} 7. O-O {[%clk 0:02:59.2]} 7... b6 {[%clk 0:02:51.3]} 8. c3 {[%clk
0:02:58.9]} 8... Bb7 {[%clk 0:02:50.6]} 9. a4 {[%clk 0:02:58.8]} 9... a6 {[%clk
0:02:40.8]} 10. Na3 {[%clk 0:02:56.8]} 10... c6 {[%clk 0:02:36.8]} 11. Qb3
{[%clk 0:02:53.9]} 11... Rb8 {[%clk 0:02:19]} 12. Rfe1 {[%clk 0:02:51.3]} 12...
b5 {[%clk 0:02:15.3]} 13. axb5 {[%clk 0:02:48.5]} 13... cxb5 {[%clk 0:02:12.5]}
14. Nd2 {[%clk 0:02:42.3]} 14... Bd5 {[%clk 0:02:09.2]} 15. Qc2 {[%clk 0:02:39]}
15... Qc7 {[%clk 0:02:00]} 16. Bf3 {[%clk 0:02:38.5]} 16... Rfc8 {[%clk
0:01:50]} 17. Bxd5 {[%clk 0:02:04.8]} 17... Nxd5 {[%clk 0:01:48.9]} 18. Bg3
{[%clk 0:02:02.8]} 18... b4 {[%clk 0:01:47.5]} 19. Nac4 {[%clk 0:02:00.2]} 19...
bxc3 {[%clk 0:01:35.2]} 20. bxc3 {[%clk 0:01:59.8]} 20... Ra8 {[%clk 0:01:10.2]}
21. Rec1 {[%clk 0:01:54.6]} 21... a5 {[%clk 0:00:52.2]} 22. Qa2 {[%clk
0:01:42.7]} 22... N5b6 {[%clk 0:00:45.7]} 23. Nxb6 {[%clk 0:01:36.1]} 23... Qxb6
{[%clk 0:00:45.1]} 24. Rab1 {[%clk 0:01:28.9]} 24... Qc6 {[%clk 0:00:43.3]} 25.
c4 {[%clk 0:01:24.1]} 25... a4 {[%clk 0:00:42.8]} 26. Rb2 {[%clk 0:01:10.8]}
26... e5 {[%clk 0:00:41.6]} 27. dxe5 {[%clk 0:01:05.5]} 27... Nxe5 {[%clk
0:00:41]} 28. Bxe5 {[%clk 0:01:02]} 28... Bxe5 {[%clk 0:00:40.1]} 29. Rbc2
{[%clk 0:01:02]} 29... a3 {[%clk 0:00:37.7]} 30. Nf3 {[%clk 0:01:00.5]} 30...
Bb2 {[%clk 0:00:36.6]} 31. Rd1 {[%clk 0:00:58.7]} 31... Qe4 {[%clk 0:00:33.7]}
32. Nd4 {[%clk 0:00:47.1]} 32... h5 {[%clk 0:00:20.1]} 33. Qb3 {[%clk
0:00:40.2]} 33... Rcb8 {[%clk 0:00:14]} 34. Qa2 {[%clk 0:00:40]} 34... Rc8
{[%clk 0:00:13.3]} 35. Kf1 {[%clk 0:00:37.9]} 35... Rcb8 {[%clk 0:00:13.1]} 36.
Kg1 {[%clk 0:00:34.6]} 36... Rc8 {[%clk 0:00:12.3]} 1/2-1/2

[Event "Betsys MČR v online bleskovém šachu 2021"]
[Site "Chess.com"]
[Date "2021.04.17"]
[Round "12"]
[White "Bolavey_Kotnik"]
[Black "TheRigos"]
[Result "0-1"]
[WhiteElo "2361"]
[BlackElo "2560"]
[TimeControl "180+1"]
[EndTime "11:00:38 PDT"]
[Termination "Uživatel TheRigos zvítězil po vzdání soupeře"]

1. e4 {[%clk 0:03:00.9]} 1... g6 {[%clk 0:02:58.9]} 2. Nc3 {[%clk 0:03:00.3]}
2... Bg7 {[%clk 0:02:59.8]} 3. f4 {[%clk 0:03:00.8]} 3... c5 {[%clk 0:03:00.2]}
4. Nf3 {[%clk 0:03:01]} 4... Nc6 {[%clk 0:03:00.7]} 5. Bb5 {[%clk 0:03:00.8]}
5... Nd4 {[%clk 0:03:00.5]} 6. a4 {[%clk 0:03:01.4]} 6... a6 {[%clk 0:02:56.4]}
7. Be2 {[%clk 0:02:59.3]} 7... e6 {[%clk 0:02:55.5]} 8. O-O {[%clk 0:02:57.9]}
8... Ne7 {[%clk 0:02:55.5]} 9. d3 {[%clk 0:02:57.1]} 9... O-O {[%clk 0:02:55.9]}
10. Kh1 {[%clk 0:02:54.1]} 10... Rb8 {[%clk 0:02:55.8]} 11. a5 {[%clk
0:02:50.9]} 11... d6 {[%clk 0:02:50.2]} 12. Be3 {[%clk 0:02:13.7]} 12... Nec6
{[%clk 0:02:45.6]} 13. e5 {[%clk 0:01:57.8]} 13... dxe5 {[%clk 0:02:38.5]} 14.
fxe5 {[%clk 0:01:35.9]} 14... Nxe5 {[%clk 0:02:32.6]} 15. Ne4 {[%clk 0:01:31.3]}
15... Nd7 {[%clk 0:02:14.2]} 16. c3 {[%clk 0:01:19.8]} 16... Nxf3 {[%clk
0:02:08.4]} 17. Bxf3 {[%clk 0:01:20.7]} 17... Qe7 {[%clk 0:01:58.1]} 18. Qe1
{[%clk 0:01:14]} 18... h6 {[%clk 0:01:38.6]} 19. Qf2 {[%clk 0:00:44.9]} 19... f5
{[%clk 0:01:10.7]} 20. Bxc5 {[%clk 0:00:42.8]} 20... Nxc5 {[%clk 0:01:07]} 21.
Nxc5 {[%clk 0:00:43.7]} 21... e5 {[%clk 0:01:03.5]} 22. Rae1 {[%clk 0:00:40.1]}
22... Kh7 {[%clk 0:01:03.3]} 23. d4 {[%clk 0:00:33.3]} 23... e4 {[%clk
0:01:02.6]} 24. Qg3 {[%clk 0:00:28.8]} 24... Be6 {[%clk 0:00:56.8]} 25. Be2
{[%clk 0:00:24.6]} 25... Bg8 {[%clk 0:00:52.1]} 26. h3 {[%clk 0:00:18.6]} 26...
Bf6 {[%clk 0:00:52.2]} 27. Qf2 {[%clk 0:00:15.5]} 27... Bh4 {[%clk 0:00:49.6]}
28. g3 {[%clk 0:00:15.9]} 28... Bg5 {[%clk 0:00:50.1]} 29. h4 {[%clk 0:00:15.4]}
29... Bd5 {[%clk 0:00:49.4]} 30. Kh2 {[%clk 0:00:15.2]} 30... Bf6 {[%clk
0:00:48.5]} 31. Qe3 {[%clk 0:00:13.9]} 31... Rbd8 {[%clk 0:00:46.8]} 32. Bf3
{[%clk 0:00:12.2]} 32... Qc7 {[%clk 0:00:46.5]} 33. Bg2 {[%clk 0:00:12]} 33...
Bxh4 {[%clk 0:00:46.8]} 34. b3 {[%clk 0:00:09.6]} 34... Bg5 {[%clk 0:00:47]} 35.
Qf2 {[%clk 0:00:08.1]} 35... f4 {[%clk 0:00:44.7]} 36. gxf4 {[%clk 0:00:08]}
36... Rxf4 {[%clk 0:00:44.5]} 37. Qg3 {[%clk 0:00:07.6]} 37... Rh4+ {[%clk
0:00:44.7]} 38. Bh3 {[%clk 0:00:08]} 38... Bf4 {[%clk 0:00:45.4]} 39. Rf3 {[%clk
0:00:07.6]} 39... Bxg3+ {[%clk 0:00:44.8]} 0-1

[Event "Betsys MČR v online bleskovém šachu 2021"]
[Site "Chess.com"]
[Date "2021.04.17"]
[Round "12"]
[White "Berzeger"]
[Black "sharpi5135"]
[Result "0-1"]
[WhiteElo "997"]
[BlackElo "762"]
[TimeControl "180+1"]
[EndTime "11:00:39 PDT"]
[Termination "Uživatel sharpi5135 zvítězil matem"]

1. e4 {[%clk 0:03:00.9]} 1... c5 {[%clk 0:02:56.3]} 2. Nf3 {[%clk 0:03:00.6]}
2... Nc6 {[%clk 0:02:51.3]} 3. d4 {[%clk 0:02:59.9]} 3... cxd4 {[%clk 0:02:49]}
4. Nxd4 {[%clk 0:03:00.8]} 4... Nxd4 {[%clk 0:02:48.6]} 5. Qxd4 {[%clk
0:03:01.7]} 5... d6 {[%clk 0:02:33.3]} 6. Nc3 {[%clk 0:02:58.2]} 6... Nf6 {[%clk
0:02:32]} 7. Bb5+ {[%clk 0:02:55.1]} 7... Bd7 {[%clk 0:02:29.9]} 8. Bxd7+ {[%clk
0:02:48.2]} 8... Qxd7 {[%clk 0:02:24.3]} 9. O-O {[%clk 0:02:44.7]} 9... e5
{[%clk 0:02:17.9]} 10. Qd3 {[%clk 0:02:39]} 10... Be7 {[%clk 0:02:14.4]} 11. Bg5
{[%clk 0:02:33.5]} 11... O-O {[%clk 0:02:08.4]} 12. Qg3 {[%clk 0:02:12.4]} 12...
Nh5 {[%clk 0:02:02.6]} 13. Qh4 {[%clk 0:02:04.8]} 13... Nf4 {[%clk 0:01:42.3]}
14. Bxf4 {[%clk 0:01:38]} 14... Bxh4 {[%clk 0:01:39.3]} 15. Nd5 {[%clk
0:01:32.5]} 15... exf4 {[%clk 0:01:34.7]} 16. Nxf4 {[%clk 0:01:28.4]} 16... Bg5
{[%clk 0:01:25]} 17. Nh3 {[%clk 0:01:25.5]} 17... Bf6 {[%clk 0:01:20.3]} 18. c3
{[%clk 0:01:23.8]} 18... d5 {[%clk 0:01:17.6]} 19. Rad1 {[%clk 0:01:23]} 19...
Rad8 {[%clk 0:01:10.3]} 20. Rxd5 {[%clk 0:01:19.5]} 20... Qxd5 {[%clk
0:01:08.1]} 21. exd5 {[%clk 0:01:19.6]} 21... Rxd5 {[%clk 0:01:07.8]} 22. Nf4
{[%clk 0:01:14.9]} 22... Rd2 {[%clk 0:01:05.6]} 23. Rb1 {[%clk 0:00:59.9]} 23...
Rfd8 {[%clk 0:00:59.7]} 24. h3 {[%clk 0:00:56.6]} 24... Rd1+ {[%clk 0:00:53.1]}
25. Rxd1 {[%clk 0:00:56.3]} 25... Rxd1+ {[%clk 0:00:52.3]} 26. Kh2 {[%clk
0:00:56.8]} 26... Be5 {[%clk 0:00:52.1]} 27. g3 {[%clk 0:00:55.6]} 27... Bxf4
{[%clk 0:00:51.3]} 28. gxf4 {[%clk 0:00:55.9]} 28... Rd2 {[%clk 0:00:50.3]} 29.
b4 {[%clk 0:00:53.1]} 29... Rxa2 {[%clk 0:00:49.1]} 30. Kg3 {[%clk 0:00:52.9]}
30... Rc2 {[%clk 0:00:48.4]} 31. Kf3 {[%clk 0:00:52.4]} 31... Rxc3+ {[%clk
0:00:48.3]} 32. Ke4 {[%clk 0:00:52.7]} 32... Rc4+ {[%clk 0:00:48]} 33. Kd3
{[%clk 0:00:49.1]} 33... Rxb4 {[%clk 0:00:48.1]} 34. Kc3 {[%clk 0:00:49.4]}
34... Rxf4 {[%clk 0:00:47.5]} 35. Kd3 {[%clk 0:00:47.8]} 35... Rf3+ {[%clk
0:00:46.5]} 36. Ke2 {[%clk 0:00:47.7]} 36... Rxh3 {[%clk 0:00:45.5]} 37. f4
{[%clk 0:00:45.9]} 37... Ra3 {[%clk 0:00:43.9]} 38. Kf2 {[%clk 0:00:44.3]} 38...
f5 {[%clk 0:00:43.4]} 39. Ke2 {[%clk 0:00:44]} 39... g6 {[%clk 0:00:43.2]} 40.
Kf2 {[%clk 0:00:44]} 40... h6 {[%clk 0:00:43]} 41. Kg2 {[%clk 0:00:43.8]} 41...
g5 {[%clk 0:00:42.8]} 42. Kf2 {[%clk 0:00:42.3]} 42... g4 {[%clk 0:00:41.6]} 43.
Kg2 {[%clk 0:00:42.3]} 43... h5 {[%clk 0:00:41.6]} 44. Kh2 {[%clk 0:00:40.7]}
44... h4 {[%clk 0:00:41.5]} 45. Kg2 {[%clk 0:00:40.5]} 45... h3+ {[%clk
0:00:40.3]} 46. Kh2 {[%clk 0:00:40.9]} 46... Ra2+ {[%clk 0:00:38.4]} 47. Kg1
{[%clk 0:00:38.2]} 47... g3 {[%clk 0:00:38.1]} 48. Kh1 {[%clk 0:00:35.7]} 48...
Ra1# {[%clk 0:00:36]} 0-1

[Event "Betsys MČR v online bleskovém šachu 2021"]
[Site "Chess.com"]
[Date "2021.04.17"]
[Round "12"]
[White "AdeeJa"]
[Black "JIDEMONI"]
[Result "0-1"]
[WhiteElo "1642"]
[BlackElo "1881"]
[TimeControl "180+1"]
[EndTime "11:00:41 PDT"]
[Termination "Uživatel JIDEMONI zvítězil na čas"]

1. e4 {[%clk 0:03:00.9]} 1... e6 {[%clk 0:02:59.8]} 2. d4 {[%clk 0:03:00.4]}
2... d5 {[%clk 0:03:00]} 3. Nd2 {[%clk 0:03:00.5]} 3... c5 {[%clk 0:02:57.9]} 4.
c3 {[%clk 0:02:59.8]} 4... Nf6 {[%clk 0:02:57]} 5. e5 {[%clk 0:02:58.7]} 5...
Nfd7 {[%clk 0:02:57]} 6. f4 {[%clk 0:02:57.6]} 6... Nc6 {[%clk 0:02:56.8]} 7.
Ngf3 {[%clk 0:02:57.7]} 7... Qb6 {[%clk 0:02:55.1]} 8. Nb3 {[%clk 0:02:46.2]}
8... cxd4 {[%clk 0:02:53.4]} 9. Nbxd4 {[%clk 0:02:44.4]} 9... Nxd4 {[%clk
0:02:50.7]} 10. Nxd4 {[%clk 0:02:44.2]} 10... f6 {[%clk 0:02:50.5]} 11. Qh5+
{[%clk 0:02:39.2]} 11... g6 {[%clk 0:02:47.5]} 12. Qh3 {[%clk 0:02:28.3]} 12...
f5 {[%clk 0:02:20]} 13. g4 {[%clk 0:02:27.5]} 13... fxg4 {[%clk 0:02:16.8]} 14.
Qxg4 {[%clk 0:02:27]} 14... Bg7 {[%clk 0:02:15.7]} 15. Nxe6 {[%clk 0:02:22.6]}
15... Kf7 {[%clk 0:02:02.1]} 16. Nxg7 {[%clk 0:02:08]} 16... Kxg7 {[%clk
0:01:51.3]} 17. Qf3 {[%clk 0:01:54.5]} 17... Rd8 {[%clk 0:01:17]} 18. h4 {[%clk
0:01:46.5]} 18... Nf8 {[%clk 0:01:14.8]} 19. h5 {[%clk 0:01:45.4]} 19... Bf5
{[%clk 0:01:11.8]} 20. Qg3 {[%clk 0:01:04.5]} 20... Ne6 {[%clk 0:01:08.6]} 21.
hxg6 {[%clk 0:01:03.2]} 21... hxg6 {[%clk 0:01:08.4]} 22. Qh4 {[%clk 0:00:59]}
22... Nf8 {[%clk 0:00:49.2]} 23. Qe7+ {[%clk 0:00:26.3]} 23... Kg8 {[%clk
0:00:41.8]} 24. Bd2 {[%clk 0:00:14.7]} 24... Rd7 {[%clk 0:00:39.1]} 25. Qh4
{[%clk 0:00:10]} 25... Rh7 {[%clk 0:00:37.2]} 26. Qxh7+ {[%clk 0:00:07]} 26...
Nxh7 {[%clk 0:00:36.5]} 27. c4 {[%clk 0:00:04.3]} 27... Qxb2 {[%clk 0:00:33.3]}
28. Rc1 {[%clk 0:00:02.8]} 28... d4 {[%clk 0:00:29]} 29. c5 {[%clk 0:00:02.2]}
29... Rc8 {[%clk 0:00:27.2]} 30. Bc4+ {[%clk 0:00:01.5]} 30... Kg7 {[%clk
0:00:25.8]} 0-1

[Event "Betsys MČR v online bleskovém šachu 2021"]
[Site "Chess.com"]
[Date "2021.04.17"]
[Round "12"]
[White "hever99"]
[Black "malviny"]
[Result "1-0"]
[WhiteElo "1940"]
[BlackElo "1197"]
[TimeControl "180+1"]
[EndTime "11:00:41 PDT"]
[Termination "Uživatel hever99 zvítězil po vzdání soupeře"]

1. e4 {[%clk 0:03:00.9]} 1... e5 {[%clk 0:02:59.8]} 2. Bc4 {[%clk 0:02:59.9]}
2... Nc6 {[%clk 0:02:57.6]} 3. Nc3 {[%clk 0:02:59.2]} 3... Be7 {[%clk
0:02:57.3]} 4. d3 {[%clk 0:02:58.1]} 4... Nf6 {[%clk 0:02:57.2]} 5. f4 {[%clk
0:02:54.5]} 5... O-O {[%clk 0:02:51.1]} 6. Nf3 {[%clk 0:02:53.5]} 6... exf4
{[%clk 0:02:50.3]} 7. Bxf4 {[%clk 0:02:52.1]} 7... d6 {[%clk 0:02:45.7]} 8. O-O
{[%clk 0:02:44.6]} 8... Bg4 {[%clk 0:02:41.9]} 9. h3 {[%clk 0:02:38.2]} 9... Bh5
{[%clk 0:02:41.2]} 10. Qd2 {[%clk 0:02:18.9]} 10... h6 {[%clk 0:02:37.1]} 11. d4
{[%clk 0:02:14.2]} 11... Bg6 {[%clk 0:02:29.2]} 12. Rae1 {[%clk 0:02:02.6]}
12... a6 {[%clk 0:02:26.8]} 13. a4 {[%clk 0:01:47.2]} 13... Nh5 {[%clk
0:02:19.7]} 14. Bh2 {[%clk 0:01:31]} 14... Bf6 {[%clk 0:02:06]} 15. g4 {[%clk
0:01:28.5]} 15... Bxd4+ {[%clk 0:01:42.1]} 16. Nxd4 {[%clk 0:01:27]} 16... Nxd4
{[%clk 0:01:37.2]} 17. Qxd4 {[%clk 0:01:22.8]} 17... Nf6 {[%clk 0:01:34.7]} 18.
Nd5 {[%clk 0:01:15.3]} 18... Nd7 {[%clk 0:01:23.8]} 19. Nf4 {[%clk 0:01:00.1]}
19... c5 {[%clk 0:01:18.5]} 20. Qxd6 {[%clk 0:00:57.4]} 20... Bh7 {[%clk
0:01:15.6]} 21. Nd5 {[%clk 0:00:51.3]} 21... Re8 {[%clk 0:00:52.5]} 22. Rxf7
{[%clk 0:00:36.8]} 22... Bxe4 {[%clk 0:00:27]} 23. Rxd7 {[%clk 0:00:25.3]} 23...
Qh4 {[%clk 0:00:17.1]} 24. Nf4+ {[%clk 0:00:20]} 24... Kh7 {[%clk 0:00:12.6]}
25. Rxe4 {[%clk 0:00:12.6]} 25... Rxe4 {[%clk 0:00:10.3]} 26. Qg6+ {[%clk
0:00:12.2]} 1-0

[Event "Betsys MČR v online bleskovém šachu 2021"]
[Site "Chess.com"]
[Date "2021.04.17"]
[Round "12"]
[White "TheFr0zenSun"]
[Black "Countryside_58"]
[Result "0-1"]
[WhiteElo "2246"]
[BlackElo "2418"]
[TimeControl "180+1"]
[EndTime "11:00:42 PDT"]
[Termination "Uživatel Countryside_58 zvítězil po vzdání soupeře"]

1. d4 {[%clk 0:03:00.9]} 1... d5 {[%clk 0:02:59]} 2. Bf4 {[%clk 0:02:59.4]} 2...
Nc6 {[%clk 0:02:59.9]} 3. e3 {[%clk 0:02:58.3]} 3... f6 {[%clk 0:02:58.2]} 4.
Nf3 {[%clk 0:02:57.7]} 4... Bg4 {[%clk 0:02:57]} 5. Be2 {[%clk 0:02:57]} 5... e5
{[%clk 0:02:57]} 6. dxe5 {[%clk 0:02:55.9]} 6... Bxf3 {[%clk 0:02:57.2]} 7. Bxf3
{[%clk 0:02:54.4]} 7... fxe5 {[%clk 0:02:57.6]} 8. Bg3 {[%clk 0:02:53.9]} 8...
Nf6 {[%clk 0:02:57.7]} 9. O-O {[%clk 0:02:39.9]} 9... e4 {[%clk 0:02:56.8]} 10.
Be2 {[%clk 0:02:32.1]} 10... Bd6 {[%clk 0:02:56.6]} 11. c4 {[%clk 0:02:29.4]}
11... Bxg3 {[%clk 0:02:55.9]} 12. hxg3 {[%clk 0:02:28.9]} 12... d4 {[%clk
0:02:55.5]} 13. exd4 {[%clk 0:02:26.1]} 13... Qxd4 {[%clk 0:02:55.4]} 14. Nc3
{[%clk 0:02:23.7]} 14... O-O-O {[%clk 0:02:54.5]} 15. Nb5 {[%clk 0:02:01]} 15...
Qb6 {[%clk 0:02:46.6]} 16. Qc2 {[%clk 0:01:58]} 16... a6 {[%clk 0:02:42.6]} 17.
Nc3 {[%clk 0:01:43.9]} 17... Nd4 {[%clk 0:02:42.1]} 18. Qc1 {[%clk 0:01:43.3]}
18... Rhe8 {[%clk 0:02:34.9]} 19. Rb1 {[%clk 0:01:38.5]} 19... e3 {[%clk
0:02:32.4]} 20. fxe3 {[%clk 0:01:24.5]} 20... Nxe2+ {[%clk 0:02:30.6]} 21. Nxe2
{[%clk 0:01:23.8]} 21... Rxe3 {[%clk 0:02:30]} 22. c5 {[%clk 0:01:22.1]} 22...
Qe6 {[%clk 0:02:16.5]} 23. Nf4 {[%clk 0:01:22]} 23... Qe4 {[%clk 0:02:12]} 24.
c6 {[%clk 0:00:59.7]} 24... bxc6 {[%clk 0:02:10.8]} 25. Re1 {[%clk 0:00:48.6]}
25... Ng4 {[%clk 0:01:58.3]} 26. Qc3 {[%clk 0:00:36.9]} 26... Rxc3 {[%clk
0:01:17.9]} 27. Rxe4 {[%clk 0:00:35.7]} 27... Rc2 {[%clk 0:01:16.9]} 28. Re2
{[%clk 0:00:31.1]} 28... Rdd2 {[%clk 0:01:15.4]} 29. Rxd2 {[%clk 0:00:27.7]}
29... Rxd2 {[%clk 0:01:15.2]} 30. a3 {[%clk 0:00:26.3]} 30... c5 {[%clk
0:01:13.4]} 31. b3 {[%clk 0:00:21.4]} 31... Ra2 {[%clk 0:01:11.6]} 32. a4 {[%clk
0:00:20.4]} 32... c4 {[%clk 0:01:11.6]} 33. bxc4 {[%clk 0:00:19.9]} 33... Rxa4
{[%clk 0:01:11.7]} 34. c5 {[%clk 0:00:20.3]} 34... Rc4 {[%clk 0:01:11]} 35. Ne6
{[%clk 0:00:18.8]} 35... Kd7 {[%clk 0:01:01.3]} 36. Nxg7 {[%clk 0:00:18.4]}
36... Rxc5 {[%clk 0:00:59.5]} 37. Rd1+ {[%clk 0:00:17.9]} 37... Kc8 {[%clk
0:00:55.7]} 38. Ne6 {[%clk 0:00:16.2]} 38... Rc3 {[%clk 0:00:53.3]} 39. Nf8
{[%clk 0:00:14.1]} 39... h5 {[%clk 0:00:52]} 40. Kf1 {[%clk 0:00:11.2]} 40...
Rxg3 {[%clk 0:00:51.1]} 41. Rd5 {[%clk 0:00:10.3]} 41... Ne3+ {[%clk 0:00:50.5]}
0-1